Cogmind - Beta 11 @@@ ROGUE MODE // 2022.04.11 @ 11:53:11 Player: Ahren Result: Destroyed by D-53 Grenadier with Mini Grenade Launcher Performance ------------- Evolutions (1) 500 Regions Visited (4) 800 Robots Destroyed (64) 320 Value Destroyed (1409) 1409 Prototype IDs (2) 40 Alien Tech Used (0) 0 Bonus (84) 84 TOTAL SCORE: 3153 Bonus ------- High Alert Combat Kills 84 Cogmind --------- Core Integrity 0/400 Matter 157/300 Energy 100/100 System Corruption 5% Temperature Hot (201) Movement Treading (240) Ox1 Location -9/Mines Parts ------- > --- POWER (1) -------- (None) > --- PROPULSION (2) --- Light Treads Improved Treads > --- UTILITY (3) ------ High-capacity Storage Unit > --- WEAPON (3) ------- Improved EM Shotgun Improved Light Cannon Rocket Launcher > --- INVENTORY (20) --- Light Ion Engine Light Treads Light Treads Sensor Array Autogun Mining Laser Peak State ------------ > --- POWER ------------ Heavy Ion Engine > --- PROPULSION ------- Light Treads Improved Treads > --- UTILITY ---------- Heat Sink Medium Storage Unit Signal Interpreter > --- WEAPON ----------- Improved EM Shotgun Particle Gun Particle Gun > --- INVENTORY -------- Light Treads Light Treads Light Treads Sensor Array Improved EM Shotgun Heavy Assault Rifle Autogun Improved Light Cannon Improved Light Cannon Rocket Launcher [Rating: 17] Favorites ----------- Power Ion Engine Engine Ion Engine Propulsion Improved Treads Treads Improved Treads Leg Aluminum Leg Wheel Armored Wheel Flight Unit Flight Unit Utility Heat Sink Device Heat Sink Storage High-capacity Storage Unit Processor Signal Interpreter Protection Light Armor Plating Weapon Particle Gun Energy Gun Particle Gun Ballistic Gun Light Assault Rifle Ballistic Cannon Improved Light Cannon Launcher Rocket Launcher Build | -11 -10 -10 -9 -9 ------- Run | Scr Mat Min Mat Min Slots Evolved 2 | . . . 2 . Power . | . . . . . Propulsion . | . . . . . Utility 1 | . . . 1 . Weapon 1 | . . . 1 . Parts Attached 68 | 8 7 10 39 4 Power 8 | 1 2 1 4 . Engine 8 | 1 2 1 4 . Core . | . . . . . Reactor . | . . . . . Propulsion 18 | 3 2 2 10 1 Treads 9 | . . . 8 1 Leg 2 | . 2 . . . Wheel 5 | 3 . . 2 . Hover . | . . . . . Flight 2 | . . 2 . . Utility 17 | 2 1 2 12 . Device 8 | 1 1 . 6 . Storage 6 | 1 . 1 4 . Processor 1 | . . 1 . . Hackware . | . . . . . Protection 2 | . . . 2 . Artifact . | . . . . . Weapon 25 | 2 2 5 13 3 Energy Gun 10 | 2 1 . 6 1 Energy Cannon . | . . . . . Ballistic Gun 9 | . 1 4 4 . Ballistic Cannon 4 | . . . 3 1 Launcher 2 | . . 1 . 1 Special Weapon . | . . . . . Impact Weapon . | . . . . . Slashing Weapon . | . . . . . Piercing Weapon . | . . . . . Special Melee Weapon . | . . . . . Unidentified Prototypes 2 | . . . 2 . Parts Lost 11 | . 3 . 2 6 Power 1 | . . . . 1 Propulsion 3 | . 1 . 2 . Utility 3 | . 1 . . 2 Weapon 4 | . 1 . . 3 Highest Loss Streak 6 | . 3 . 1 6 To Critical Strikes . | . . . . . Average Slot Usage (%) 97 | . 95 95 98 99 Engine 11 | . 14 14 11 11 Treads 11 | . . . 13 21 Leg 5 | . 17 16 . . Wheel 4 | . 9 . 6 . Flight 2 | . . 11 1 . Device 11 | . 10 14 11 10 Storage 10 | . 14 8 10 11 Processor 8 | . . 2 11 10 Energy Gun 15 | . 17 8 24 . Ballistic Gun 7 | . 10 17 2 11 Ballistic Cannon 7 | . . . 5 21 Naked Turns . | . . . . . Heaviest Build 60 | 13 15 14 60 60 Greatest Support 46 | 32 32 20 46 46 Greatest Overweight (x) 3 | . . 3 1 1 Average Overweight (x) . | . . . . 1 Largest Inventory Capacity 20 | 8 8 8 20 20 Average Capacity 12 | 7 8 6 11 20 Most Carried 10 | 4 5 5 10 10 Average Carried 7 | 3 3 4 8 9 Final Capacity 20 | 8 8 5 20 20 Final Carried 8 | 4 3 4 8 6 Class Distribution -------------------- 42% | Gunner 27% | Mutant 10% | Skirmisher 8% | Scavenger-Gunner 5% | Scavenger-Mutant 4% | Scavenger-Skirmisher Dominant Class ---------------- Mutant | -10/Materials Mutant | -10/Mines Gunner | -9/Materials Gunner | -9/Mines Resources | -11 -10 -10 -9 -9 ----------- Run | Scr Mat Min Mat Min Matter Collected 1145 | 280 73 149 632 11 Remotely . | . . . . . Salvage Created 1937 | 158 212 166 1332 69 Parts 151 | 16 13 24 94 4 Haulers Intercepted 3 | . . . 3 . Recyclers Shooed 1 | . . 1 . . Parts Field Recycled . | . . . . . Retrieved Matter . | . . . . . Parts Self-Destructed . | . . . . . Prevented . | . . . . . Kills | -11 -10 -10 -9 -9 ------- Run | Scr Mat Min Mat Min Combat Hostiles Destroyed 52 | . 7 12 27 6 Guns 40 | . 7 12 20 1 Cannons 12 | . . . 7 5 Classes Destroyed 11 | 3 2 . 5 1 Worker 5 | 1 . . 4 . Tunneler 4 | 3 . . . 1 Hauler 3 | . . . 3 . Recycler 1 | 1 . . . . Watcher 5 | . . . 5 . Swarmer 18 | . 3 12 3 . Grunt 18 | . 4 . 14 . Brawler 1 | . . . 1 . Duelist 1 | . . . 1 . Sentry 8 | . . . 8 . Assembled 6 | . . . . 6 Best Kill Streak 6 | 3 3 4 6 6 Combat Bots Only 6 | . 3 4 5 6 Max Kills in Single Turn 2 | 1 1 1 2 2 Gunslinging 1 | . . . 1 . Exploded . | . . . . . Melee . | . . . . . Uniques/NPCs Destroyed . | . . . . . Combat | -11 -10 -10 -9 -9 -------- Run | Scr Mat Min Mat Min Damage Taken 3056 | . 515 221 1237 1083 Core 642 | . 183 43 218 198 Absorbed by Shields . | . . . . . Core Remaining (%) 54 | 100 . 9 . . Volleys Fired 173 | 19 27 32 83 12 Largest 3 | 2 2 2 3 3 Hottest 186 | 90 90 70 186 117 Shots Fired 414 | 38 53 56 231 36 Gun 346 | 38 53 49 195 11 Cannon 59 | . . . 36 23 Launcher 9 | . . 7 . 2 Special . | . . . . . Kinetic 145 | . 18 24 70 33 Thermal 207 | 19 27 25 136 . Explosive 9 | . . 7 . 2 Electromagnetic 53 | 19 8 . 25 1 Robot Hit Streak 22 | 5 11 4 22 4 Robot Miss Streak 5 | 3 1 5 5 5 Penetration Max . | . . . . . Secondary Targets 4 | . 1 2 1 . Max Gunslinging Chain 1 | . 1 1 1 . Shots Hit Robots 257 | 24 40 26 151 16 Core Hits 104 | 6 14 14 59 11 Critical Kills . | . . . . . Critical Parts Destroyed . | . . . . . Critical Strikes 10 | 2 3 1 4 . Burn 10 | 2 3 1 4 . Melee Attacks . | . . . . . Impact . | . . . . . Slashing . | . . . . . Piercing . | . . . . . Sneak Attacks . | . . . . . Combat Hostiles . | . . . . . Follow-up Attacks . | . . . . . Damage Inflicted 3873 | 308 453 275 2430 407 Guns 3096 | 308 453 275 1953 107 Cannons 758 | . . . 477 281 Explosions 19 | . . . . 19 Melee . | . . . . . Ramming . | . . . . . Kinetic 1232 | . 89 88 686 369 Thermal 1979 | 149 272 187 1371 . Explosive 19 | . . . . 19 Electromagnetic 643 | 159 92 . 373 19 Impact . | . . . . . Slashing . | . . . . . Piercing . | . . . . . Highest Corruption 5 | . . . . 5 Average Corruption 5 | . . . . 5 Corruption Purged . | . . . . . Corruption Blocked . | . . . . . Overload Shots . | . . . . . Overflow Damage . | . . . . . Projectiles . | . . . . . Explosions . | . . . . . Melee . | . . . . . Knockbacks 5 | . . . 1 4 Impact . | . . . . . Kinetic 5 | . . . 1 4 Secondary . | . . . . . Self-Inflicted Damage 4 | . . . . 4 Shots 1 | . . . . 1 Rammed . | . . . . . Targets Rammed . | . . . . . Kicked . | . . . . . Crushed . | . . . . . Highest Temperature 383 | 150 314 20 383 201 Average Temperature 115 | 60 145 8 132 92 Received Heat Transfer 813 | . 282 . 411 120 Effects 9 | . 2 . 7 . Interference 9 | . 2 . 7 . Siege Activations . | . . . . . Robots Corrupted . | . . . . . Combat Hostiles . | . . . . . Parts Fried 1 | . 1 . . . Impact Corruptions . | . . . . . Robots Melted . | . . . . . Combat Hostiles . | . . . . . Parts Melted 10 | . 3 1 6 . Heat Transferred 5846 | 592 1036 629 3589 . Parts Sabotaged . | . . . . . Parts Stolen . | . . . . . Parts Stripped . | . . . . . Power Chain Reactions . | . . . . . Missiles Intercepted . | . . . . . Alert | -11 -10 -10 -9 -9 ------- Run | Scr Mat Min Mat Min Peak Influence 519 | 25 170 361 519 207 Initial 202 | . 16 66 72 202 Average 205 | 8 101 240 286 117 Maximum Alert Level 2 | . . 1 2 1 Low Security (%) 41 | 100 100 28 23 44 Level 1 50 | . . 71 59 55 Level 2 7 | . . . 17 . Level 3 . | . . . . . Level 4 . | . . . . . Level 5 . | . . . . . High Security . | . . . . . Max Security . | . . . . . Squads Dispatched 3 | . . . 3 . Investigation 3 | . . . 3 . Extermination . | . . . . . Reinforcement . | . . . . . Assault . | . . . . . Garrison . | . . . . . Intercept . | . . . . . Searches Triggered . | . . . . . Construction Impeded . | . . . . . Haulers Reinforced . | . . . . . Active Scanning Responses . | . . . . . Cargo Convoy Interrupts . | . . . . . Stealth | -11 -10 -10 -9 -9 --------- Run | Scr Mat Min Mat Min Distress Signals 3 | . . . 3 . Communications Jammed . | . . . . . Distress Signals . | . . . . . Times Spotted 65 | . 9 12 33 11 Peak Tracking Total 9 | . 5 3 6 9 Tactical Retreats 2 | . . 1 1 . Traps | -11 -10 -10 -9 -9 ------- Run | Scr Mat Min Mat Min Traps Triggered 2 | . . . 2 . Indirectly . | . . . . . Trap Hack Attempts . | . . . . . Triggered . | . . . . . Disarmed 6 | . 6 . . . Reprogrammed . | . . . . . Reused . | . . . . . Traps Extracted . | . . . . . Installed . | . . . . . Triggered . | . . . . . Machines | -11 -10 -10 -9 -9 ---------- Run | Scr Mat Min Mat Min Machines Disabled 1 | . . . 1 . Max in Single Turn 1 | . . . 1 . Machines Sabotaged . | . . . . . Garrisons Compromised . | . . . . . Overloaded Fab Kills . | . . . . . Hacking | -11 -10 -10 -9 -9 --------- Run | Scr Mat Min Mat Min Machines Accessed 8 | . 3 . 5 . Terminals 6 | . 3 . 3 . Fabricators . | . . . . . Repair Stations . | . . . . . Recycling Units . | . . . . . Scanalyzers 2 | . . . 2 . Garrison Access . | . . . . . Total Hacks 29 | . 13 . 16 . Successful 22 | . 9 . 13 . Failed 7 | . 4 . 3 . Catastrophic 1 | . . . 1 . Database Lockouts . | . . . . . Manual . | . . . . . Terminals 25 | . 13 . 12 . Fabricators . | . . . . . Repair Stations . | . . . . . Recycling Units . | . . . . . Scanalyzers 4 | . . . 4 . Garrison Access . | . . . . . Terminal Hacks 18 | . 9 . 9 . Record 6 | . . . 6 . Branch Access Points 1 | . 1 . . . Emergency Access Points 1 | . . . 1 . Alert Level 1 | . 1 . . . Locate Traps 2 | . 2 . . . Disarm Traps 1 | . 1 . . . Maintenance Status 2 | . 2 . . . Surveillance Status 1 | . . . 1 . Reinforcement Status 1 | . 1 . . . Hauler Manifests 1 | . 1 . . . Zone Layout 1 | . . . 1 . Fabricator Hacks . | . . . . . Repair Station Hacks . | . . . . . Recycling Unit Hacks . | . . . . . Scanalyzer 4 | . . . 4 . Insert Component 2 | . . . 2 . Analyze 2 | . . . 2 . Garrison Access Hacks . | . . . . . Unauthorized Hacks . | . . . . . Terminals . | . . . . . Fabricators . | . . . . . Repair Stations . | . . . . . Recycling Units . | . . . . . Scanalyzers . | . . . . . Garrison Access . | . . . . . Data Cores Recovered . | . . . . . Used . | . . . . . Hacking Detections 7 | . 3 . 4 . Full Trace Events 1 | . . . 1 . Feedback Events . | . . . . . Feedback Blocked . | . . . . . Robot Schematics Acquired . | . . . . . Robots Built . | . . . . . Authchips . | . . . . . Time . | . . . . . Total Robot Build Rating . | . . . . . Part Schematics Acquired 2 | . . . 2 . Parts Built . | . . . . . Authchips . | . . . . . Time . | . . . . . Total Part Build Rating . | . . . . . Parts Repaired . | . . . . . Time . | . . . . . Parts Recycled . | . . . . . Recycled Matter . | . . . . . Retrieved Matter . | . . . . . Retrieved Components . | . . . . . Parts Scanalyzed 2 | . . . 2 . Part Schematics Acquired 2 | . . . 2 . Parts Damaged . | . . . . . Bothacking | -11 -10 -10 -9 -9 ------------ Run | Scr Mat Min Mat Min Used RIF Installer . | . . . . . Robots Hacked . | . . . . . Non-combat . | . . . . . Combat . | . . . . . Robot Hacks Applied . | . . . . . Relay Couplers Released . | . . . . . Fabnet Peak Effective % . | . . . . . Robots Rewired . | . . . . . Allies Hacked . | . . . . . Hacks Repelled . | . . . . . Allies | -11 -10 -10 -9 -9 -------- Run | Scr Mat Min Mat Min Total Allies . | . . . . . Largest Group . | . . . . . Highest-Rated Group . | . . . . . Highest-Rated Ally . | . . . . . Total Orders . | . . . . . Ally Attacks . | . . . . . Total Damage . | . . . . . Kills . | . . . . . Allies Corrupted . | . . . . . Allies Melted . | . . . . . Intel | -11 -10 -10 -9 -9 ------- Run | Scr Mat Min Mat Min Robot Analysis Total . | . . . . . Derelict Logs Recovered 2 | . . 1 . 1 Drone Launches . | . . . . . Drone Recoveries . | . . . . . Exploration | -11 -10 -10 -9 -9 ------------- Run | Scr Mat Min Mat Min Turns Passed 3128 | 143 390 476 1403 716 Spaces Moved 1843 | 64 242 534 730 273 Core 1 | 1 . . . . Treads 658 | . . . 385 273 Legs 312 | . 161 151 . . Wheels 389 | 63 81 . 245 . Hover . | . . . . . Flight 483 | . . 383 100 . Fastest Speed 37 | 50 100 37 37 240 Average Speed 123 | 95 113 61 131 240 Slowest Speed 280 | 100 120 280 240 240 Overloaded Moves . | . . . . . Propulsion Burnouts . | . . . . . Robots Hopped 2 | . . 2 . . Cave-ins Triggered . | . . . . . Exploration Rate (%) 51 | 4 46 87 70 52 Regions Visited 4 Branch Regions 2 Pre-discovered Areas . | . . . . . Known Exits Taken 3 | . 1 1 1 . Unknown Exits Taken 1 | 1 . . . . Scrap Searched 3 | . . 1 . 2 Spaces Dug 89 | . . 89 . . Terrain Destroyed 106 | . . 89 . 17 Melee . | . . . . . Projectile . | . . . . . AOE 106 | . . 89 . 17 Terrain Rammed . | . . . . . Walls Destroyed . | . . . . . Machines Disabled . | . . . . . Actions | -11 -10 -10 -9 -9 --------- Run | Scr Mat Min Mat Min Total 2347 | 104 308 625 1002 308 Wait 194 | 9 28 38 102 17 Move 1835 | 63 241 529 729 273 Hop 2 | . . 2 . . Pick Up 31 | 4 2 6 17 2 Fast Attach 28 | 8 1 3 16 . Attach 17 | . 3 3 7 4 Detach 2 | . . . 2 . Swap 23 | . 3 4 16 . Drop 42 | 1 3 8 30 . Fire 173 | 19 27 32 83 12 Melee . | . . . . . Ram . | . . . . . Kick . | . . . . . Crush . | . . . . . Escape Stasis . | . . . . . Rewire . | . . . . . Trap . | . . . . . Miscellaneous . | . . . . . Route ------- -11/Scrapyard -10/Materials (discovered 2 exits: *Mat / *Min) -10/Mines (discovered 2 exits: *Mat x2) -9/Materials (discovered 2 exits: *Mat / *Min) -9/Mines (discovered 2 exits: *Mat x2) History --------- Turn | Location | Event 18 | -11/Scrapyard | Discovered new exit (range 16) 144 | -11/Scrapyard | Entered Materials 161 | -10/Materials | Identified exit to Mines 301 | -10/Materials | Lost 3 parts (1n1u1w) 306 | -10/Materials | Build established: Mutant 312 | -10/Materials | Core integrity fell below 50% 402 | -10/Materials | Discovered new exit (range 10) 534 | -10/Materials | Entered Mines 802 | -10/Mines | Core integrity fell below 20% 868 | -10/Mines | Received a Rocket Launcher from a helpful Derelict 889 | -10/Mines | Discovered new exit (range 14) 894 | -10/Mines | Learned Materials emergency access door positions 942 | -10/Mines | Discovered new exit (range 4) 945 | -10/Mines | Identified exit to Materials 1010 | -10/Mines | Entered Materials 1010 | -9/Materials | Evolved 2 slots: Utility x1, Weapon x1 1469 | -9/Materials | Build established: Skirmisher 1874 | -9/Materials | Discovered new exit (range 7) 1910 | -9/Materials | Identified exit to Materials 2234 | -9/Materials | Discovered new exit (range 16) 2297 | -9/Materials | Core integrity fell below 50% 2411 | -9/Materials | Identified exit to Mines 2413 | -9/Materials | Entered Mines 2492 | -9/Mines | Build established: Gunner 2537 | -9/Mines | Learned Materials stockpile data 2633 | -9/Mines | Discovered exit to Materials (range 15) 2772 | -9/Mines | Discovered exit to Materials (range 4) 3083 | -9/Mines | Assembled infested the area 3120 | -9/Mines | Core integrity fell below 20% 3129 | -9/Mines | Destroyed by D-53 Grenadier with Mini Grenade Launcher Last Messages --------------- 03105_ R-06 Scavenger system corrupted by crushing effect. 03105_ Imp. Treads severed. 03106_ R-06 Scavenger system terminally corrupted. 03107_ as-63416 destroyed. 03107_ Heat Sink destroyed. 03111_ as-66669 destroyed. 03113_ as-92565 destroyed. 03114_ D-53 Grenadier unfolds itself. 03115_ Signal Interpreter destroyed. 03115_ System corrupted by crushing effect (+5). 03118_ as-75654 destroyed. 03119_ Imp. Light Cannon destroyed. 03121_ as-46243 destroyed. 03121_ Hvy. Assault Rifle destroyed. 03121_ as-58497 destroyed. 03121_ as-86238 destroyed. 03123_ D-53 Grenadier knocked back. 03125_ Imp. Light Cannon destroyed. 03126_ The unstable cave ceiling collapses. 03129_ Hvy. Ion Engine destroyed. Map ----- +----------------------------------------------------+ | ???????????????????????????????# %## #### | | ???????????????????????????????# #### ##??? | | ???????????????????????????????# #?# #???? | | ???????????????????????????????# #?# #???? | | ???????????????????????????????# #?## ##???? | | ???????????????????????????????# #??## #????? | | ???????????????????????????????# #???# ##????? | | ????????????????? ????????????# #???## ??????? | | ????????????????? ????????# #????## ??????? | | ???????????????? ###### #?????# ??????? | | ???????????????? #?????# ??????? | | ???????????????? #?????# ??????? | | ???????????????? # ###?????# ??????? | | ????????????????# ### ## #???????# ??????? | | ?????????????????# ?????##?# #???????# ???????? | | ??????????????????????????????# ###?????# ???????? | | ?????????????????????????????## ##????# ???????? | | ????????????????????????????## #????? ???????? | | ??????????????????????###???# ##?????????????? | | ?????????????????##?### #### ##??????????????? | | ????????????????## # ## ##???????????????? | | ???????????# ### #####????????????? | | ???????????# #######??????? | | ???????????# d #??????? | | ??????????????# d % #??????# | | ?????????????# @ ### # #??????# | | ??????????????? ### #???# # #??????# | | ???????????????????## ###???# # #??????# | | ????????????????????## ##?????# # #??????# | | ?????????????????????## ###??????# # #??????# | | ??????????????????????#######????????# # #?????## | | ?????????????????????????????????????# # #?????# | | ?????????????????????????????????????# # #?????# | | ?????????????????????????????????????? # #?????# | | ?????????????????????????????????????? # #?????# | | ?????????????????????????????????????? # #?????# | | ?????????????????????????????????????? # #????## | | ?????????????????????????????????????? # #????# | | ?????????????????????????????????????? # #????# | | ?????????????????????????????????????? # #???## | | ???????????????????????????????????????# ##### | | ???????????????????????????????????????# | | ???????????????????????????????????????# | | ???????????????????????????????????????####### | | ?????????????????????????????????????????????# | | ?????????????????????????????????????????????# | | ?????????????????????????????????????????????# | | ?????????????????????????????????????????????## | | ??????????????????????????????????????????????## | | ???????????????????????????????????????????????## | +----------------------------------------------------+ Best States ------------- Heat Dissipation 38 Coolant Potential 50 Energy Generation 14 Energy Capacity 280 Matter Stores 300 Matter Capacity 300 Sight Range 16 Robot Scan Range 14 Terrain Scan Range 16 Terrain Scan Density 10 Armor Coverage 150 Evasion (%) 62 Recoil Reduction 2 Item Schematics ----------------- Rocket Launcher | -9/Materials | Scanalyzed Lgt. Treads | -9/Materials | Scanalyzed Robot Schematics ------------------ None Fabricated ------------ Nothing Alien Tech Used ----------------- None Achievements -------------- None Challenges ------------ None Game ------ Seed ZioniteHypercooledBooster Manual? 0 Play Time 00:44:03 Cumulative 20.6 hours Start 2022.04.10 @ 21:29:32 End 2022.04.11 @ 11:53:11 Sessions 3 Manual Loads 0 Difficulty Rogue Special Mode None Game No. 17 Rogue 17 Adventurer 0 Explorer 0 Win Type - Total 0 Types 0/0/0/0/0/0/0/0/0 Lore% 19 Gallery% 28 Achievement% 25 Wizard Run 0 Options --------- ASCII 0 Keyboard 0 Movement Numpad Keybinds 0 Fullscreen 2 Font 24/Smallcaps Map View 76x50 Tactical HUD 1 Map Filters NONE Filters NONE Steam 1 RUN: acb68697-1109-4c57-8412-325a24f0adbe